bitfinex/quotes_ETHUSD_20240917
["timestamp","ask_amount","ask_price","bid_price","bid_amount"]
[1726539835364,6.34603048,2283.4,2282.9,4.38039]
[1726539835574,3.0,2283.3,2282.9,4.38039]
[1726539836191,3.0,2283.3,2282.8,4.38039]
[1726539836690,0.09358687,2283.2,2282.8,4.38039]
[1726539836986,0.09358687,2283.2,2282.8,8.76088]
[1726539837215,2.06016735,2283.2,2282.9,4.38037]
[1726539837949,2.06016735,2283.2,2282.8,8.76086]
[1726539838155,2.06016735,2283.2,2282.8,4.38039]
[1726539838566,2.06016735,2283.2,2282.8,8.76087]
[1726539838768,2.06016735,2283.2,2282.8,4.38039]
[1726539839171,2.06016735,2283.2,2282.9,4.38037]
[1726539839879,2.06016735,2283.2,2282.8,4.38039]
[1726539840368,2.06016735,2283.2,2282.9,4.38038]
[1726539840781,2.06016735,2283.2,2282.8,4.38039]
[1726539841012,2.06016735,2283.2,2282.8,8.76086]
[1726539841170,2.06016735,2283.2,2282.9,4.38038]
[1726539842169,2.06016735,2283.2,2283.0,4.38018]
[1726539842372,2.06016735,2283.2,2283.1,8.76]
[1726539842373,0.09358687,2283.2,2283.1,8.76]
[1726539842572,0.07622502,2284.2,2283.4,4.37937]
[1726539842573,6.34521048,2283.9,2283.4,4.37937]
[1726539842875,6.34519048,2283.9,2283.4,4.37937]
[1726539843066,6.34516048,2283.9,2283.4,8.75868]
[1726539843298,1.96658048,2284.1,2283.3,2.487]
[1726539843504,1.96658048,2284.4,2283.7,4.37875]
[1726539843666,4.37746,2284.5,2283.7,4.37875]
[1726539843667,4.83491068,2284.7,2284.1,4.37797]
[1726539843878,4.83491068,2284.7,2284.2,4.37775]
[1726539843879,1.96658048,2284.7,2284.2,4.37775]
[1726539844103,1.96658048,2284.7,2284.0,2.3761]
[1726539844104,6.34354048,2284.7,2284.1,8.75607]
[1726539844280,6.34354048,2284.7,2284.1,4.37799]
[1726539844612,6.34354048,2284.7,2284.1,8.75598]
[1726539844765,6.34354048,2284.7,2284.1,4.37799]
[1726539844965,1.96658048,2284.5,2284.1,4.37799]
[1726539845169,1.96658048,2284.5,2284.1,8.75599]
[1726539845794,3.0382455,2284.6,2284.1,4.37799]
[1726539845978,0.55,2284.5,2284.1,4.37799]
[1726539846394,0.55,2284.5,2284.1,8.75598]
[1726539846799,0.55,2284.5,2284.1,4.37799]
[1726539846970,0.55,2284.5,2283.9,4.37832]
[1726539846971,4.92733,2284.5,2284.0,4.37824]
[1726539847172,0.55,2284.5,2284.0,4.37824]
[1726539847392,0.55,2284.3,2284.0,4.37824]
[1726539847595,0.09039844,2284.2,2284.0,4.37824]
[1726539848408,0.55,2284.5,2284.0,4.37824]
[1726539848612,0.09059329,2284.1,2284.0,4.37824]
[1726539848821,0.55,2284.5,2284.0,4.37824]
[1726539848981,0.09059329,2284.1,2284.0,4.37824]
[1726539849176,0.55,2284.5,2284.0,4.37824]
[1726539849395,0.09100984,2284.4,2284.0,4.37824]
[1726539850707,0.09100984,2284.4,2284.1,4.37808]
[1726539853700,0.09100984,2284.4,2284.1,8.75606]
[1726539854188,0.09100984,2284.4,2284.1,4.37797]
[1726539855430,0.64100984,2284.4,2284.3,4.3777]
[1726539858825,0.64100984,2284.4,2284.3,8.7554]
[1726539859039,0.09100984,2284.4,2284.3,15.5834]
[1726539859315,0.0382455,2284.6,2284.3,15.5834]
[1726539859316,0.0382455,2284.6,2284.5,15.58226]
[1726539859560,0.0382455,2284.6,2284.5,28.58758661]
[1726539859715,0.0382455,2284.6,2284.3,1.55834]
[1726539859716,0.0382455,2285.3,2285.2,15.57824]
[1726539860052,0.0382455,2285.3,2285.2,22.24942627]
[1726539860259,0.0382455,2285.3,2285.2,26.62540627]
[1726539860752,0.0382455,2286.0,2285.9,4.37464]
[1726539860958,0.11289902,2286.0,2285.9,4.37464]
[1726539861174,0.0382455,2286.0,2285.9,4.37464]
[1726539862468,0.0382455,2286.0,2285.8,6.825]
[1726539862469,0.11289902,2286.0,2285.8,6.825]
[1726539862672,0.0382455,2286.0,2285.8,6.825]
[1726539862850,0.07451489,2285.9,2285.8,6.825]
[1726539866838,0.07451489,2285.9,2285.8,4.3747]
[1726539869736,0.07451489,2285.9,2285.8,8.74953]
[1726539870342,0.07451489,2285.9,2285.8,9.624483]
[1726539873246,0.07451489,2285.9,2285.8,8.74953]
[1726539873667,0.07451489,2285.9,2285.8,15.49686]
[1726539873869,0.07451489,2285.9,2285.8,19.87169]
[1726539874071,0.0382455,2286.0,2285.9,19.87106]
[1726539874288,0.0382455,2286.0,2285.9,24.12174661]
[1726539874451,0.0382455,2286.7,2286.6,8.7466]
[1726539874651,0.0382455,2286.7,2286.6,11.1621]
[1726539875159,0.0382455,2286.7,2286.6,4.3733]
[1726539875361,0.10965349,2286.7,2286.6,4.3733]
[1726539876794,0.10965349,2286.7,2286.5,4.3734]
[1726539877307,0.10965349,2286.7,2286.3,4.37373]
[1726539877446,0.1147,2286.5,2285.8,3.27808266]
[1726539877646,0.1147,2286.5,2286.0,4.37443]
[1726539877852,0.07122276,2286.4,2285.9,8.74903]
[1726539878072,0.07122276,2286.4,2285.9,4.37448]
[1726539878277,0.07122276,2286.4,2285.9,5.490933]
[1726539878472,0.07122276,2286.4,2286.2,4.37398]
[1726539878790,0.07122276,2286.4,2286.3,11.16324]
[1726539878949,0.07122276,2286.4,2286.3,12.716988]
[1726539879151,0.0382455,2286.7,2286.5,4.37349]
[1726539879792,0.06943406,2286.6,2286.5,4.37349]
[1726539882402,0.0382455,2286.7,2286.6,4.3733]
[1726539882690,0.0382455,2286.7,2286.6,11.24675871]
[1726539884802,0.0382455,2286.7,2286.6,15.49744532]
[1726539893001,0.10251167,2286.7,2286.6,15.49744532]
[1726539895838,0.10251167,2286.7,2286.6,11.24675871]
[1726539896018,0.10251167,2286.7,2286.6,12.62286196]
[1726539899446,0.1147,2287.2,2286.8,4.37291]
[1726539899743,0.1147,2287.2,2286.8,10.42573]
[1726539899907,0.1147,2287.2,2286.8,6.05282]
[1726539901608,0.126967,2287.2,2286.8,6.05282]
[1726539902025,0.06052845,2287.1,2286.8,6.05282]
[1726539902552,0.07279545,2287.1,2286.8,6.05282]
[1726539906433,0.07279545,2287.1,2286.8,6.05281]
[1726539906758,0.07279545,2287.1,2286.8,7.48303026]
[1726539906950,0.07279545,2287.1,2286.9,2.4651]
[1726539913655,0.07279545,2287.1,2286.9,6.83782]
[1726539914061,0.07279545,2287.1,2286.9,2.4651]
[1726539914441,0.07279545,2287.1,2287.0,8.70617905]
[1726539914631,0.07279545,2287.1,2287.0,13.07871905]
[1726539918077,0.07279545,2287.1,2287.0,15.35918901]
[1726539918461,0.012267,2287.1,2287.0,15.35918901]
[1726539919478,0.012267,2287.1,2287.0,17.03918901]
[1726539919680,0.012267,2287.1,2287.0,19.29893641]
[1726539923690,0.012267,2287.1,2287.0,6.05254]
[1726539924199,0.07060141,2287.1,2287.0,6.05254]
[1726539924702,0.07060141,2287.1,2287.0,6.13997876]
[1726539925178,0.07060141,2287.1,2287.0,6.05254]
[1726539928373,0.07060141,2287.1,2287.0,12.88011865]
[1726539928574,0.07060141,2287.1,2287.0,14.84218351]
[1726539932247,0.012267,2287.1,2287.0,14.84218351]
[1726539933479,0.07054561,2287.1,2287.0,14.84218351]
[1726539933674,0.012267,2287.1,2287.0,14.84218351]
[1726539934085,0.012267,2287.1,2287.0,26.58726351]
[1726539934305,0.012267,2287.1,2287.0,27.67357449]
[1726539934604,7.47,2287.6,2287.5,11.08336]
[1726539934800,0.0416496,2287.7,2287.6,8.74278]
[1726539935505,0.0416496,2287.7,2287.5,1.68]
[1726539935663,0.127,2287.6,2287.5,1.68]
[1726539935861,0.18160908,2287.6,2287.5,1.68]
[1726539942409,0.05460908,2287.6,2287.5,1.68]
[1726539945621,4.55299908,2287.6,2287.5,1.68]
[1726539945930,0.18160908,2287.6,2287.5,1.68]
[1726539947641,0.05460908,2287.6,2287.5,1.68]
[1726539949832,0.18160908,2287.6,2287.5,1.68]
[1726539951252,0.05460908,2287.6,2287.5,1.68]
[1726539962128,0.09357408,2287.6,2287.5,1.68]
[1726539965049,0.09357408,2287.6,2287.5,13.12907304]
[1726539965254,0.09357408,2287.6,2287.5,17.50065304]
[1726539965495,0.038965,2287.6,2287.5,20.50065304]
[1726539965665,0.038965,2287.6,2287.5,21.5907087]
[1726539966406,0.038965,2287.6,2287.5,16.12907304]
[1726539968455,0.038965,2287.6,2287.5,7.38591304]
[1726539971086,0.038965,2287.6,2287.5,4.38591304]
[1726539971409,0.038965,2287.6,2287.5,1.68]
[1726539971755,0.09256979,2287.6,2287.5,1.68]
[1726539974717,0.09256979,2287.6,2287.5,3.9574]
[1726539975512,0.09256979,2287.6,2287.5,4.04480838]
[1726539975695,0.09256979,2287.6,2287.5,4.87288132]
[1726539977813,0.09256979,2287.6,2287.5,4.78547294]
[1726539978018,0.09256979,2287.6,2287.5,3.9574]
[1726539978419,0.09256979,2287.6,2287.5,1.68]
[1726539980120,0.21956979,2287.6,2287.5,1.68]
[1726539980289,4.59095979,2287.6,2287.5,1.68]
[1726539980612,0.21956979,2287.6,2287.5,1.68]
[1726539983912,0.09256979,2287.6,2287.5,1.68]
[1726539985746,0.09256979,2287.6,2287.5,4.125]
[1726539985946,0.09256979,2287.6,2287.5,4.54624199]
[1726539986226,0.09256979,2287.6,2287.5,4.63365551]
[1726539989543,0.09256979,2287.6,2287.5,7.63365551]
[1726539989933,0.038965,2287.6,2287.5,7.63365551]
[1726539990135,0.005,2288.1,2287.6,1.58780931]
[1726539990346,0.005,2288.1,2287.8,2.405]
[1726539990652,0.005,2288.1,2287.9,0.08740405]
[1726539990864,0.05081466,2288.0,2287.9,0.08740405]
[1726539992518,0.05081466,2288.0,2287.8,2.4924015]
[1726539992756,0.05081466,2288.0,2287.7,1.49780931]
[1726539992757,0.17781466,2288.0,2287.7,1.49780931]
[1726539993053,0.17781466,2288.0,2287.7,1.5852163]
[1726539993219,0.05081466,2288.0,2287.7,1.5852163]
[1726539993617,0.05081466,2288.0,2287.7,1.49780931]
[1726539993858,0.05081466,2288.0,2287.7,2.34891021]
[1726539995438,0.05081466,2288.0,2287.7,1.49780931]
[1726539996927,0.127,2287.9,2287.7,1.49780931]
[1726539997255,0.0502022,2287.8,2287.7,1.49780931]
[1726540004929,0.132,2288.1,2287.7,1.49780931]
[1726540005135,0.04896112,2287.8,2287.7,1.49780931]
[1726540005356,0.132,2288.1,2287.7,1.49780931]
[1726540005570,0.04924145,2287.8,2287.7,1.49780931]
[1726540005772,0.132,2288.1,2287.7,1.88514186]
[1726540005940,0.04974834,2287.8,2287.7,1.88514186]
[1726540006135,0.132,2288.1,2287.7,1.88514186]
[1726540006346,0.04986646,2287.8,2287.7,1.88514186]
[1726540006546,0.132,2288.1,2287.7,1.88514186]
[1726540007257,0.04923798,2288.0,2287.7,1.88514186]
[1726540007858,4.50251,2288.1,2288.0,1.44857133]
[1726540008168,4.55052544,2288.1,2288.0,1.44857133]
[1726540008358,0.18001544,2288.1,2288.0,1.44857133]
[1726540012004,4.55044544,2288.1,2288.0,1.44857133]
[1726540012406,0.18001544,2288.1,2288.0,1.44857133]
[1726540013901,4.37025,2288.2,2288.1,1.21855589]
[1726540015975,4.37025,2288.2,2287.6,0.08741618]
[1726540016179,4.37025,2288.2,2287.6,0.3249678]
[1726540016487,4.37082,2287.9,2287.6,0.23755162]
[1726540016803,4.37066,2288.0,2287.5,2.2881]
[1726540017108,4.37066,2288.0,2286.8,6.65361819]
[1726540017109,4.37128,2287.7,2287.3,2.4823]
[1726540017272,4.23592099,2287.9,2287.3,2.4823]
[1726540017273,4.37139,2287.6,2287.3,2.4823]
[1726540017706,4.37139,2287.6,2287.0,4.0]
[1726540017707,4.41536547,2287.5,2287.1,2.4823]
[1726540018003,4.41536547,2287.5,2287.1,2.8823]
[1726540018004,0.04370547,2287.5,2287.1,2.8823]
[1726540018303,0.04370547,2287.5,2287.1,2.96973377]
[1726540018507,0.04370547,2287.5,2287.2,0.29697338]
[1726540018807,4.37113,2287.8,2287.2,0.38440218]
[1726540018808,4.3711,2287.8,2287.2,0.38440218]
[1726540019009,0.04432453,2287.4,2287.2,0.29697338]
[1726540019215,8.74228,2287.8,2287.2,0.29697338]
[1726540019520,4.3712,2287.7,2287.2,0.29697338]
[1726540019814,0.04488654,2287.6,2287.2,0.29697338]
[1726540021276,0.04488654,2287.6,2287.1,2.4823]
[1726540021818,4.37159,2287.5,2287.1,2.4823]
[1726540022118,4.41530369,2287.4,2286.8,2.4823]
[1726540022329,4.41530369,2287.4,2286.9,3.54823]
[1726540022658,4.41530369,2287.4,2286.8,2.4823]
[1726540022659,0.04347369,2287.4,2286.8,2.4823]
[1726540022981,4.41527369,2287.4,2286.8,2.4823]
[1726540024618,4.41527369,2287.4,2286.8,5.4823]
[1726540024781,0.04347369,2287.4,2287.0,2.4823]
[1726540026420,4.41525369,2287.4,2287.0,2.4823]
[1726540026794,4.41525369,2287.4,2286.9,0.9718221]
[1726540027433,4.41527369,2287.4,2286.9,0.9718221]
[1726540029087,4.37201,2287.3,2286.9,0.9718221]
[1726540029491,0.0441098,2287.2,2286.8,2.4823]
[1726540029693,4.4162898,2287.2,2286.8,2.4823]
[1726540029925,4.37201,2287.3,2286.8,2.4823]
[1726540029926,0.04261487,2287.1,2286.8,2.4823]
[1726540030145,4.37201,2287.3,2286.8,3.03053]
[1726540030315,4.37236,2287.1,2286.8,3.03053]
[1726540030549,8.78721339,2287.2,2286.4,5.3947]
[1726540030699,0.04220299,2287.0,2286.5,0.9630621]
[1726540030900,0.04234153,2287.1,2286.5,0.9630621]
[1726540031096,0.04206444,2286.9,2286.7,2.3947]
[1726540031420,0.04192588,2286.8,2286.7,2.3947]
[1726540031619,8.74446,2287.2,2286.7,2.3947]
[1726540031826,0.04192588,2286.8,2286.7,2.3947]
[1726540032026,4.37244,2287.1,2286.7,2.79405383]
[1726540032204,0.04192588,2286.8,2286.7,2.79405383]
[1726540032408,8.7445,2287.2,2286.7,2.79405383]
[1726540032651,8.7445,2287.2,2286.8,0.28815041]
[1726540032838,8.7445,2287.2,2286.7,2.79405383]
[1726540033035,0.04262196,2287.1,2286.7,2.79405383]
[1726540033214,4.41502196,2287.1,2286.7,2.79405383]
[1726540034449,0.04262196,2287.1,2286.7,2.79405383]
[1726540035960,0.04262196,2287.1,2286.9,2.2788]
[1726540036268,4.37198,2287.3,2287.0,0.22788]
[1726540036559,8.74375,2287.4,2287.0,0.22788]
[1726540036716,8.74375,2287.4,2286.9,2.2788]
[1726540036920,4.37187,2287.4,2286.9,2.2788]
[1726540037118,4.37198,2287.3,2286.9,2.2788]
[1726540040158,4.37179,2287.4,2286.9,2.2788]
[1726540040363,0.04264429,2287.3,2286.9,2.54661538]
[1726540046163,4.37159,2287.5,2286.9,2.54661538]
[1726540046476,0.04264612,2287.4,2287.1,4.21660325]
[1726540046689,0.04264612,2287.4,2287.3,4.21660325]
[1726540046885,4.37079,2288.0,2287.4,2.26]
[1726540047038,4.37047,2288.1,2287.4,2.26]
[1726540047477,4.37064,2288.0,2287.4,2.26]
[1726540047687,0.04175776,2288.0,2287.5,0.46470063]
[1726540047881,0.04175776,2288.0,2287.6,2.26]
[1726540048051,4.37046,2288.1,2287.6,2.26]
[1726540048251,0.04167402,2287.9,2287.6,2.26]
[1726540048458,0.04181244,2288.0,2287.6,2.486]
[1726540048654,0.04153559,2287.8,2287.6,2.486]
[1726540048872,4.37046,2288.1,2287.6,2.486]
[1726540049090,0.04139714,2287.7,2287.6,2.486]
[1726540049592,4.37046,2288.1,2287.6,2.486]
[1726540049750,0.04001496,2287.7,2287.6,2.486]
[1726540049957,8.7408,2288.2,2287.6,2.26]
[1726540050288,0.04056867,2288.1,2287.6,2.26]
[1726540050488,4.41101867,2288.1,2287.6,2.26]
[1726540050998,0.04056867,2288.1,2287.6,2.26]
[1726540051159,0.04056867,2288.1,2287.7,0.226]
[1726540051362,0.04056867,2288.1,2287.7,0.31341305]
[1726540051585,4.4084495,2288.3,2287.7,0.31341305]
[1726540051792,0.03966549,2288.0,2287.7,0.31341305]
[1726540051995,8.7786095,2288.3,2287.7,0.31341305]
[1726540052158,0.03952704,2287.9,2287.7,0.31341305]
[1726540052358,4.4083895,2288.3,2287.7,0.31341305]
[1726540052590,0.04029757,2288.2,2287.7,0.31341305]
[1726540053367,0.04029757,2288.2,2287.7,0.226]
[1726540054469,4.41054757,2288.2,2287.7,0.226]
[1726540057697,0.04029757,2288.2,2287.7,0.226]
[1726540061065,0.04029757,2288.2,2287.8,2.4052]
[1726540061279,4.4083795,2288.3,2287.8,2.4052]
[1726540061477,0.03910168,2288.1,2287.8,2.4052]
[1726540061704,8.7785195,2288.3,2287.8,2.66832]
[1726540061885,0.03896326,2288.0,2287.8,2.66832]
[1726540062086,0.0382295,2288.3,2287.9,2.37920868]
[1726540062291,0.0382295,2288.3,2288.0,0.68791921]
[1726540062491,0.0382295,2288.3,2288.1,2.2918]
[1726540065589,0.03924009,2288.2,2288.1,2.2918]
[1726540065796,0.0382295,2288.3,2288.1,2.2918]
[1726540066217,0.03924009,2288.2,2288.1,2.2918]
[1726540066516,0.03924009,2288.2,2288.1,2.59851169]
[1726540066719,0.0382295,2288.3,2288.1,2.59851169]
[1726540066904,0.03924009,2288.2,2288.1,2.59851169]
[1726540067283,0.0382295,2288.3,2288.1,2.59851169]
[1726540067479,0.03924009,2288.2,2288.1,2.68590938]
[1726540067837,0.0382295,2288.3,2288.1,2.37919769]
[1726540068014,0.0382295,2288.3,2288.2,2.4662]
[1726540068214,0.0382295,2288.3,2288.2,2.55359015]
[1726540068410,0.0382295,2288.3,2288.2,3.0043465]
[1726540069150,0.0382295,2288.3,2288.2,6.0043465]
[1726540069361,0.0382295,2289.0,2288.2,6.0043465]
[1726540069362,0.0382295,2289.0,2288.8,2.4662]
[1726540070861,0.0382295,2289.0,2288.8,2.55356793]
[1726540071161,0.0382295,2289.0,2288.9,0.67859192]
[1726540072549,0.0382295,2289.0,2288.8,2.4662]
[1726540072750,0.0382295,2289.0,2288.9,2.52296764]
[1726540072936,0.0382295,2289.0,2288.9,2.4356]
[1726540079195,0.0382295,2289.0,2288.6,2.4789]
[1726540079395,4.369,2288.9,2288.3,2.4789]
[1726540079803,0.0382,2288.8,2288.3,2.4789]
[1726540079959,0.0382295,2289.0,2288.3,6.71125123]
[1726540080375,0.0382295,2289.0,2288.4,2.4789]
[1726540080600,4.4069595,2289.0,2288.4,2.4789]
[1726540080808,8.73797,2288.9,2288.4,2.4789]
[1726540081092,0.0382,2288.8,2288.4,2.4789]
[1726540081295,4.36893,2288.9,2288.4,2.4789]
[1726540084035,4.3692,2288.8,2288.2,2.4162]
[1726540084236,4.3692,2288.8,2288.3,0.24162]
[1726540085451,4.40791,2288.5,2288.0,2.2938]
[1726540086703,4.36986,2288.4,2288.0,2.2938]
[1726540087965,4.37011,2288.3,2288.0,2.2938]
[1726540088106,4.37028,2288.2,2288.0,2.2938]
[1726540088305,4.37028,2288.2,2287.7,2.3235]
[1726540088640,8.74064,2288.2,2287.7,2.3235]
[1726540089140,4.37028,2288.2,2287.7,2.3235]
[1726540089342,4.37064,2288.0,2287.7,2.3235]
[1726540089551,4.40884,2288.0,2287.7,2.3235]
[1726540090051,4.40884,2288.0,2287.3,2.2713]
[1726540090052,8.77967,2288.0,2287.3,2.2713]
[1726540090356,4.40892,2288.0,2287.3,2.69453512]
[1726540090646,4.37072,2288.0,2287.4,2.4993]
[1726540090818,4.37098,2287.9,2287.4,3.21478864]
[1726540091140,4.40921,2287.8,2287.4,2.4993]
[1726540091345,8.78033,2287.8,2287.4,2.4993]
[1726540091542,4.40921,2287.8,2287.4,2.4993]
[1726540091715,0.0382,2287.8,2287.4,2.79155351]
[1726540092118,4.37076,2288.0,2287.4,2.79155351]
[1726540092119,8.77971,2288.0,2287.4,2.79155351]
[1726540092327,4.40895,2288.0,2287.4,2.79155351]
[1726540092520,4.40894,2288.0,2287.5,0.27915535]
[1726540092728,8.77969,2288.0,2287.5,0.27915535]
[1726540094577,4.37074,2288.0,2287.5,0.27915535]
[1726540094738,4.37072,2288.0,2287.5,0.27915535]
[1726540095264,8.74145,2288.0,2287.5,0.27915535]
[1726540098742,4.37072,2288.0,2287.5,0.27915535]
[1726540103380,8.74151,2288.0,2287.5,0.27915535]
[1726540103591,4.37094,2287.9,2287.4,2.4993]
[1726540105357,4.37103,2287.8,2287.4,2.4993]
[1726540105594,8.7801,2287.9,2287.4,2.4993]
[1726540106201,4.40911,2287.9,2287.4,2.4993]
[1726540107272,4.37109,2287.8,2287.4,2.4993]
[1726540108566,4.37131,2287.7,2287.4,2.4993]
[1726540108809,4.3714,2287.6,2287.4,2.4993]
[1726540109918,4.3714,2287.6,2287.1,2.4689]
[1726540110082,4.3714,2287.6,2287.2,0.4424482]
[1726540114934,8.74288,2287.6,2287.2,0.4424482]
[1726540115303,4.3714,2287.6,2287.2,0.4424482]
[1726540115508,4.37159,2287.5,2287.1,2.4689]
[1726540116189,4.37121,2287.7,2287.1,2.55633506]
[1726540116631,4.37121,2287.7,2287.1,2.4689]
[1726540119404,4.37144,2287.6,2287.1,2.4689]
[1726540119615,4.37144,2287.6,2287.1,2.9113482]
[1726540127330,4.37144,2287.6,2287.1,2.99877899]
[1726540131240,4.37144,2287.6,2287.1,2.9113482]
[1726540132881,4.37144,2287.6,2287.1,2.99877909]
[1726540135249,4.37144,2287.6,2287.1,2.9113482]
[1726540135745,4.37144,2287.6,2287.1,2.99877914]
[1726540135946,4.37144,2287.6,2287.3,2.3981]
[1726540138654,1.95558197,2287.5,2287.1,2.2698]
[1726540138862,4.37206,2287.3,2287.1,2.2698]
[1726540139065,4.37169,2287.5,2287.1,2.2698]
[1726540139260,4.37178,2287.4,2287.1,2.2698]
[1726540141275,4.37169,2287.5,2287.1,2.2698]
[1726540141469,8.74343,2287.5,2287.1,2.2698]
[1726540144349,4.37169,2287.5,2287.1,2.2698]
[1726540144554,8.74338,2287.5,2287.1,2.2698]
[1726540145164,4.37143,2287.6,2287.1,2.2698]
[1726540145357,4.37129,2287.7,2287.1,2.49678]
[1726540146374,4.37129,2287.7,2287.3,2.438]
[1726540146952,8.74267,2287.7,2287.3,2.438]
[1726540147853,4.37129,2287.7,2287.3,2.438]
[1726540149285,4.37129,2287.7,2287.3,2.90879922]
[1726540150054,4.37094,2287.9,2287.4,2.2794]
[1726540150261,4.37094,2287.9,2287.5,0.08742035]
[1726540150459,4.37071,2288.0,2287.6,2.2794]
[1726540152390,4.37083,2287.9,2287.6,2.2794]
[1726540152755,4.37104,2287.8,2287.6,2.2794]
[1726540155664,4.37104,2287.8,2287.4,2.2794]
[1726540156503,4.40903,2287.9,2287.4,2.2794]
[1726540156504,4.3712,2287.7,2287.4,2.2794]
[1726540156673,8.74252,2287.7,2287.4,2.2794]
[1726540157604,4.3712,2287.7,2287.4,2.2794]
[1726540157775,8.74251,2287.7,2287.4,2.2794]
[1726540158506,4.37148,2287.6,2287.4,2.2794]
[1726540161282,4.3712,2287.7,2287.4,2.2794]
[1726540161480,8.74252,2287.7,2287.4,2.2794]
[1726540162805,4.37149,2287.6,2287.4,2.2794]
[1726540163006,4.37149,2287.6,2287.1,4.09668422]
[1726540163319,4.37149,2287.6,2287.1,2.3783]
[1726540163608,4.37149,2287.6,2287.2,2.3783]
[1726540165980,4.37129,2287.7,2287.2,2.3783]
[1726540167270,8.7426,2287.7,2287.2,2.3783]
[1726540167606,8.74258,2287.7,2287.2,2.3783]
[1726540167809,8.74258,2287.7,2287.2,2.99214288]
[1726540168012,8.74258,2287.7,2287.2,2.3783]
[1726540168967,8.74259,2287.7,2287.2,2.3783]
[1726540169170,4.37129,2287.7,2287.2,2.3783]
[1726540169395,8.7426,2287.7,2287.2,2.3783]
[1726540170127,4.37129,2287.7,2287.2,2.3783]
[1726540170789,8.7426,2287.7,2287.2,2.3783]
[1726540171327,4.37118,2287.8,2287.2,4.94611267]
[1726540171617,4.37118,2287.8,2287.2,2.90310035]
[1726540171821,4.37118,2287.8,2287.2,0.52480035]
[1726540171993,4.40941,2287.7,2287.2,2.81080035]
[1726540178496,4.37149,2287.6,2287.2,2.286]
[1726540184543,4.3712,2287.7,2287.2,2.286]
[1726540186834,8.74252,2287.7,2287.2,2.286]
[1726540187151,4.3712,2287.7,2287.2,2.286]
[1726540188044,4.37158,2287.5,2287.2,2.286]
[1726540188812,4.40993,2287.5,2287.0,2.4189]
[1726540189942,4.3718,2287.4,2287.0,2.4189]
[1726540190247,8.74341,2287.5,2287.0,2.4189]
[1726540190748,4.37168,2287.5,2287.0,2.4189]
[1726540191323,8.74335,2287.5,2287.0,2.4189]
[1726540191825,4.37167,2287.5,2287.0,2.4189]
[1726540193933,4.3718,2287.4,2287.0,2.4189]
[1726540194257,4.37167,2287.5,2287.0,2.4189]
[1726540194447,8.74343,2287.5,2287.0,2.4189]
[1726540194651,4.37167,2287.5,2287.0,2.4189]
[1726540200132,4.37249,2287.1,2286.8,0.91412155]
[1726540200456,4.37272,2287.0,2286.7,2.2938]
[1726540200621,4.37281,2286.9,2286.7,2.2938]
[1726540202531,4.37281,2286.9,2286.3,2.4008]
[1726540203328,4.37292,2286.8,2286.3,2.4008]
[1726540204766,8.74599,2286.8,2286.3,2.4008]
[1726540204969,4.37292,2286.8,2286.3,2.4008]
[1726540205463,4.41112,2286.8,2286.3,2.4008]
[1726540205957,4.37292,2286.8,2286.3,2.4008]
[1726540206169,4.37292,2286.8,2286.3,3.0312384]
[1726540206992,4.41088,2287.0,2286.4,2.2721]
[1726540206993,4.37273,2286.9,2286.4,2.2721]
[1726540211458,6.37273,2286.9,2286.4,2.2721]
[1726540211860,4.37312,2286.7,2286.4,2.2721]
[1726540212769,8.74637,2286.7,2286.4,2.2721]
[1726540212956,4.37332,2286.6,2286.4,2.2721]
[1726540213188,4.37349,2286.5,2286.4,2.2721]
[1726540213673,4.37349,2286.5,2286.2,0.0382295]
[1726540213674,4.37387,2286.3,2286.2,0.0382295]
[1726540214381,4.37382,2286.4,2286.2,0.0382295]
[1726540214587,4.37351,2286.5,2286.3,2.2853]
[1726540218507,4.37351,2286.5,2286.2,0.0382295]
[1726540219081,6.32933197,2286.4,2286.2,0.0382295]
[1726540219287,8.74774,2286.3,2286.2,0.0382295]
[1726540221612,12.29774,2286.3,2286.2,0.0382295]
[1726540221778,12.33594,2286.3,2286.2,0.0382295]
[1726540223573,16.70981,2286.3,2286.2,0.0382295]
[1726540241993,12.29774,2286.3,2286.2,0.0382295]
[1726540242695,4.37387,2286.3,2286.2,2.4275295]
[1726540242899,4.37387,2286.3,2286.2,2.67028245]
[1726540243551,4.37387,2286.3,2286.2,2.4275295]
[1726540250116,4.37387,2286.3,2286.2,0.0382295]
[1726540250117,14.25332197,2286.3,2286.2,0.0382295]
[1726540254989,18.62719197,2286.3,2286.2,0.0382295]
[1726540255191,14.25332197,2286.3,2286.2,0.0382295]
[1726540255490,14.29152197,2286.3,2286.2,0.0382295]
[1726540266103,14.25332197,2286.3,2286.2,0.0382295]
[1726540272830,18.62719197,2286.3,2286.2,0.0382295]
[1726540273508,14.25332197,2286.3,2286.2,0.0382295]
[1726540273711,18.62719197,2286.3,2286.2,0.0382295]
[1726540277037,18.66539197,2286.3,2286.2,0.0382295]
[1726540278938,18.62719197,2286.3,2286.2,0.0382295]
[1726540281035,14.25332197,2286.3,2286.2,0.0382295]
[1726540281596,12.29774,2286.3,2286.2,0.0382295]
[1726540282815,7.37387,2286.3,2286.2,2.3374295]
[1726540284451,7.92387,2286.3,2286.2,2.3374295]
[1726540289040,12.29774,2286.3,2286.2,2.3374295]
[1726540293728,11.74774,2286.3,2286.2,2.3374295]
[1726540308139,11.74774,2286.3,2286.2,0.0382295]
[1726540309053,12.29774,2286.3,2286.2,0.0382295]
[1726540314984,11.74774,2286.3,2286.2,0.0382295]
[1726540318275,11.74774,2286.3,2286.2,1.3982295]
[1726540320991,11.74774,2286.3,2286.2,1.39720387]
[1726540328827,13.74152197,2286.3,2286.2,1.39720387]
[1726540333526,18.66539197,2286.3,2286.2,1.39720387]
[1726540335004,23.03926197,2286.3,2286.2,1.39720387]
[1726540335506,23.03926197,2286.3,2284.9,1.37118233]
[1726540335507,23.03926197,2286.3,2284.8,0.0382295]
[1726540335508,4.37655,2284.9,2284.8,0.0382295]
[1726540336543,4.37651,2285.0,2284.8,0.0382295]
[1726540337045,8.75297,2285.0,2284.8,0.0382295]
[1726540337246,4.37648,2285.0,2284.8,0.0382295]